Cogmind - Beta 14 @@@ ROGUE MODE // 2024.11.06 @ 20:52:41 Player: RB21 Result: Destroyed by B-36 Bruiser with Hammer Performance ------------- Evolutions (1) 500 Regions Visited (2) 400 Robots Destroyed (18) 90 Value Destroyed (461) 461 Prototype IDs (0) 0 Alien Tech Used (0) 0 Bonus (0) 0 TOTAL SCORE: 1451 Bonus ------- None Cogmind --------- Core Integrity 0/400 Matter 201/300 Energy 265/265 System Corruption 0% Temperature Cool (0) Movement Treading (160) Location -9/Materials Parts ------- > --- POWER (1) -------- Improved Ion Engine > --- PROPULSION (2) --- Light Treads Light Treads > --- UTILITY (4) ------ Medium Storage Unit Signal Interpreter Utility Shielding Light Armor Plating > --- WEAPON (2) ------- Heavy Assault Rifle Autogun > --- INVENTORY (10) --- Light Ion Engine Improved Ion Engine Light Treads Large Storage Unit Small Battery (100) Signal Interpreter Power Shielding Beam Cannon Light Assault Rifle Peak State ------------ > --- POWER ------------ Improved Ion Engine > --- PROPULSION ------- Light Treads Light Treads > --- UTILITY ---------- Medium Storage Unit Signal Interpreter Utility Shielding Light Armor Plating > --- WEAPON ----------- Heavy Assault Rifle Autogun > --- INVENTORY -------- Light Ion Engine Improved Ion Engine Light Treads Large Storage Unit Small Battery Signal Interpreter Power Shielding Beam Cannon Light Assault Rifle [Rating: 13] Favorites ----------- Power Ion Engine Engine Ion Engine Propulsion Aluminum Leg Treads Light Treads Leg Aluminum Leg Utility Medium Storage Unit Storage Medium Storage Unit Processor Signal Interpreter Protection Utility Shielding Weapon Light Assault Rifle Energy Gun EM Pulse Gun Ballistic Gun Light Assault Rifle Build | -11 -10 -9 ------- Run | Yrd Mat Mat Slots Evolved 2 | . . 2 Power . | . . . Propulsion . | . . . Utility 2 | . . 2 Weapon . | . . . Parts Attached 32 | 6 13 13 Power 7 | 1 3 3 Engine 7 | 1 3 3 Core . | . . . Reactor . | . . . Propulsion 8 | 2 3 3 Treads 3 | . . 3 Leg 5 | 2 3 . Wheel . | . . . Hover . | . . . Flight . | . . . Utility 9 | 1 5 3 Device . | . . . Storage 4 | 1 3 . Processor 1 | . 1 . Hackware . | . . . Protection 4 | . 1 3 Artifact . | . . . Weapon 8 | 2 2 4 Energy Gun 4 | 1 2 1 Energy Cannon . | . . . Ballistic Gun 4 | 1 . 3 Ballistic Cannon . | . . . Launcher . | . . . Special Weapon . | . . . Impact Weapon . | . . . Slashing Weapon . | . . . Piercing Weapon . | . . . Special Melee Weapon . | . . . Unidentified Prototypes . | . . . Parts Lost 11 | . 4 7 Power 2 | . . 2 Propulsion 4 | . 2 2 Utility . | . . . Weapon 5 | . 2 3 Highest Loss Streak 7 | . 3 7 To Critical Strikes . | . . . Average Slot Usage (%) 86 | . 91 78 Engine 12 | . 14 10 Treads 4 | . . 11 Leg 14 | . 22 3 Storage 12 | . 14 11 Processor 9 | . 7 11 Protection 9 | . 4 16 Energy Gun 8 | . 13 1 Ballistic Gun 13 | . 14 13 Peak Build Rating 13 | 6 8 13 Average Rating 7 | 4 6 8 On Entrance 4 | . 6 7 Naked Turns . | . . . Heaviest Build 48 | 13 48 27 Greatest Support 40 | 20 20 40 Greatest Overweight (x) 5 | 3 5 5 Average Overweight (x) . | . . 1 Largest Inventory Capacity 15 | 8 15 10 Average Capacity 9 | 7 9 10 Most Carried 10 | 2 10 9 Average Carried 6 | 1 6 6 Final Capacity 10 | 8 10 10 Final Carried 9 | 2 9 9 Class Distribution -------------------- 71% | Mutant 28% | Scavenger-Mutant Dominant Class ---------------- Mutant | -10/Materials Scavenger-Mutant | -9/Materials Resources | -11 -10 -9 ----------- Run | Yrd Mat Mat Matter Collected 543 | 180 216 147 Remotely . | . . . Salvage Created 578 | . 315 263 Parts 40 | . 14 26 Haulers Intercepted . | . . . Recyclers Shooed . | . . . Parts Field Recycled . | . . . Retrieved Matter . | . . . Parts Self-Destructed . | . . . Prevented . | . . . Kills | -11 -10 -9 ------- Run | Yrd Mat Mat Combat Hostiles Destroyed 17 | . 9 8 Guns 17 | . 9 8 Classes Destroyed 4 | . 2 2 Builder 1 | . . 1 Swarmer 7 | . 3 4 Grunt 7 | . 6 1 Sentry 3 | . . 3 Best Kill Streak 3 | . 3 3 Combat Bots Only 3 | . 3 3 Max Kills in Single Turn 2 | . 2 1 Gunslinging 1 | . 1 . Exploded . | . . . Melee . | . . . Uniques/NPCs Destroyed . | . . . Combat | -11 -10 -9 -------- Run | Yrd Mat Mat Hostile Shots Fired 169 | . 71 98 Missed 42 | . 14 28 Damage Taken 1691 | . 723 968 Core 553 | . 137 416 Absorbed by Shields . | . . . Redirected to Shielding 26 | . . 26 Core Remaining (%) 72 | 100 45 . Volleys Fired 61 | . 35 26 Largest 2 | . 2 2 Hottest 80 | . 70 80 Shots Fired 104 | . 59 45 Gun 104 | . 59 45 Cannon . | . . . Launcher . | . . . Special . | . . . Kinetic 75 | . 35 40 Thermal 24 | . 21 3 Explosive . | . . . Electromagnetic 5 | . 3 2 Robot Hit Streak 17 | . 13 17 Robot Miss Streak 7 | . 5 7 Penetration Max . | . . . Secondary Targets 3 | . 3 . Max Gunslinging Chain 1 | . 1 . Shots Hit Robots 71 | . 43 28 Core Hits 32 | . 19 13 Critical Kills . | . . . Critical Parts Destroyed . | . . . Critical Strikes 3 | . 3 . Burn 2 | . 2 . Corrupt 1 | . 1 . Melee Attacks . | . . . Impact . | . . . Slashing . | . . . Piercing . | . . . Sneak Attacks . | . . . Combat Hostiles . | . . . Follow-up Attacks . | . . . Damage Inflicted 833 | . 403 430 Guns 803 | . 400 403 Cannons . | . . . Explosions 27 | . . 27 Melee . | . . . Ramming 3 | . 3 . Kinetic 565 | . 214 351 Thermal 219 | . 162 57 Explosive . | . . . Electromagnetic 46 | . 24 22 Impact . | . . . Slashing . | . . . Piercing . | . . . Highest Corruption . | . . . Average Corruption . | . . . Corruption Purged . | . . . Corruption Blocked . | . . . Overload Shots . | . . . Overflow Damage 12 | . . 12 Projectiles . | . . . Explosions 12 | . . 12 Melee . | . . . Knockbacks . | . . . Impact . | . . . Kinetic . | . . . Secondary . | . . . Self-Inflicted Damage 33 | . . 33 Shots 1 | . . 1 Rammed . | . . . Targets Rammed 2 | 1 1 . Kicked 2 | 1 1 . Crushed . | . . . Highest Temperature 127 | . 127 22 Average Temperature 41 | . 55 8 Received Heat Transfer 582 | . 354 228 Siege Activations . | . . . Robots Corrupted . | . . . Combat Hostiles . | . . . Parts Fried . | . . . Impact Corruptions . | . . . Robots Melted . | . . . Combat Hostiles . | . . . Parts Melted 1 | . 1 . Heat Transferred 707 | . 582 125 Parts Sabotaged . | . . . Parts Stolen . | . . . Parts Stripped . | . . . Power Chain Reactions 1 | . . 1 Alert | -11 -10 -9 ------- Run | Yrd Mat Mat Peak Influence 245 | . 130 245 Initial 35 | . . 35 Average 55 | . 37 87 Maximum Alert Level 1 | . . 1 Low Security (%) 91 | 100 100 79 Level 1 8 | . . 20 Level 2 . | . . . Level 3 . | . . . Level 4 . | . . . Level 5 . | . . . High Security . | . . . Max Security . | . . . Squads Dispatched 1 | . 1 . Investigation . | . . . Extermination . | . . . Reinforcement 1 | . 1 . Assault . | . . . Garrison . | . . . Intercept . | . . . Searches Triggered . | . . . Construction Impeded . | . . . Haulers Reinforced . | . . . Active Scanning Responses . | . . . Cargo Convoy Interrupts . | . . . Stealth | -11 -10 -9 --------- Run | Yrd Mat Mat Distress Signals 1 | . 1 . Communications Jammed . | . . . Distress Signals . | . . . Times Spotted 27 | . 12 15 Peak Tracking Total 5 | . 5 4 Tactical Retreats 3 | . . 3 Traps | -11 -10 -9 ------- Run | Yrd Mat Mat Traps Triggered 1 | . 1 . Indirectly . | . . . Trap Hack Attempts . | . . . Triggered . | . . . Disarmed . | . . . Reprogrammed . | . . . Reused . | . . . Traps Extracted . | . . . Installed . | . . . Triggered . | . . . Machines | -11 -10 -9 ---------- Run | Yrd Mat Mat Machines Disabled . | . . . Max in Single Turn . | . . . Machines Repaired . | . . . Machines Dismantled . | . . . Machines Sabotaged . | . . . Overloaded Fab Kills . | . . . Hacking | -11 -10 -9 --------- Run | Yrd Mat Mat Machines Accessed 1 | . 1 . Terminals 1 | . 1 . Fabricators . | . . . Repair Stations . | . . . Recycling Units . | . . . Scanalyzers . | . . . Garrison Access . | . . . Total Hacks 1 | . 1 . Successful 1 | . 1 . Failed . | . . . Catastrophic . | . . . Database Lockouts . | . . . Manual . | . . . Terminals 1 | . 1 . Fabricators . | . . . Repair Stations . | . . . Recycling Units . | . . . Scanalyzers . | . . . Garrison Access . | . . . Terminal Hacks 1 | . 1 . Hauler Manifests 1 | . 1 . Fabricator Hacks . | . . . Repair Station Hacks . | . . . Recycling Unit Hacks . | . . . Scanalyzer . | . . . Garrison Access Hacks . | . . . Unauthorized Hacks . | . . . Terminals . | . . . Fabricators . | . . . Repair Stations . | . . . Recycling Units . | . . . Scanalyzers . | . . . Garrison Access . | . . . Data Cores Recovered . | . . . Used . | . . . Hacking Detections . | . . . Full Trace Events . | . . . Feedback Events . | . . . Feedback Blocked . | . . . Robot Schematics Acquired . | . . . Robots Built . | . . . Authchips . | . . . Time . | . . . Total Robot Build Rating . | . . . Part Schematics Acquired . | . . . Parts Built . | . . . Authchips . | . . . Time . | . . . Total Part Build Rating . | . . . Parts Repaired . | . . . Time . | . . . Parts Recycled . | . . . Recycled Matter . | . . . Retrieved Matter . | . . . Retrieved Components . | . . . Parts Scanalyzed . | . . . Part Schematics Acquired . | . . . Parts Damaged . | . . . Bothacking | -11 -10 -9 ------------ Run | Yrd Mat Mat Used RIF Installer . | . . . Robots Hacked . | . . . Non-combat . | . . . Combat . | . . . Robot Hacks Applied . | . . . Relay Couplers Released . | . . . Fabnet Peak Effective % . | . . . Robots Rewired . | . . . Allies Hacked . | . . . Hacks Repelled . | . . . Allies | -11 -10 -9 -------- Run | Yrd Mat Mat Total Allies . | . . . Largest Group . | . . . Highest-Rated Group . | . . . Highest-Rated Ally . | . . . Total Orders . | . . . Ally Attacks . | . . . Total Damage . | . . . Kills . | . . . Allies Corrupted . | . . . Allies Melted . | . . . Intel | -11 -10 -9 ------- Run | Yrd Mat Mat Robot Analysis Total . | . . . Derelict Logs Recovered . | . . . Drone Launches . | . . . Drone Recoveries . | . . . Exploration | -11 -10 -9 ------------- Run | Yrd Mat Mat Turns Passed 997 | 61 526 410 Spaces Moved 519 | 41 295 183 Core 57 | 5 6 46 Treads 98 | . . 98 Legs 364 | 36 289 39 Wheels . | . . . Hover . | . . . Flight . | . . . Fastest Speed 50 | 50 120 120 Average Speed 150 | 119 138 175 Slowest Speed 300 | 200 300 300 Overloaded Moves . | . . . Propulsion Burnouts . | . . . Robots Hopped . | . . . Cave-ins Triggered . | . . . Exploration Rate (%) 21 | 4 44 15 Regions Visited 2 Branch Regions . Pre-discovered Areas . | . . . Known Exits Taken 1 | . 1 . Unknown Exits Taken 1 | 1 . . Scrap Searched . | . . . Spaces Dug . | . . . Terrain Destroyed 6 | . . 6 Melee . | . . . Projectile . | . . . AOE 6 | . . 6 Terrain Rammed . | . . . Walls Destroyed . | . . . Machines Disabled . | . . . Actions | -11 -10 -9 --------- Run | Yrd Mat Mat Total 635 | 50 357 228 Wait . | . . . Move 517 | 40 294 183 Hop . | . . . Pick Up 16 | 3 9 4 Fast Attach 14 | 5 4 5 Attach 7 | 1 2 4 Detach 1 | . 1 . Swap 11 | . 7 4 Drop 6 | . 4 2 Fire 61 | . 35 26 Melee . | . . . Ram . | . . . Kick 2 | 1 1 . Crush . | . . . Escape Stasis . | . . . Rewire . | . . . Trap . | . . . Miscellaneous . | . . . Route ------- -11/Scrapyard -10/Materials (discovered 2 exits: *Mat / [*Sub]) -9/Materials History --------- Turn | Location | Event 14 | -11/Scrapyard | Discovered new exit (range 15) 62 | -11/Scrapyard | Entered Materials 230 | -10/Materials | Discovered new exit (range 11) 326 | -10/Materials | Build established: Mutant 439 | -10/Materials | Lost 3 parts (2n1w) 475 | -10/Materials | Core integrity fell below 50% 586 | -10/Materials | Discovered new exit (range 9) 587 | -10/Materials | Identified exit to Materials 588 | -10/Materials | Entered another Materials area 588 | -9/Materials | Evolved 2 slots: Utility x2 695 | -9/Materials | Core integrity fell below 50% 707 | -9/Materials | Lost 7 parts (2p2n3w) 864 | -9/Materials | Core integrity fell below 20% 998 | -9/Materials | Destroyed by B-36 Bruiser with Hammer Last Messages --------------- K-01 Serf collects debris. K-01 Serf cleans the Nuclear Reactor. K-01 Serf collects debris. K-01 Serf cleans the Nuclear Reactor. Connecting with Scanalyzer... S-10 Pest destroyed. Y-45 Defender destroyed. Acquired Lgt. Assault Rifle. Dropped Lgt. Treads. Dropped Aluminum Leg. R-06 Scavenger collects Aluminum Leg. Acquired 10 matter. S-10 Pest destroyed. U-05 Engineer destroyed. S-10 Pest destroyed. Acquired 20 matter. Acquired Imp. Ion Engine. Acquired 14 matter. Acquired Beam Cannon. G-34 Mercenary destroyed. Map ----- +----------------------------------------------------+ | ????????????????# # #???????# #???# #??????? | | ????????????????# !# #???????# #???# #??????? | | ????????????????####### #??????## ##### #??????? | | ??????????????????????# #??????# #??????? | | ??????????????????????# #??????# #??????? | | ????????????? ??????# #??????# #??????? | | ????????????# ??????# #??????##+#########??????? | | ????????????# ?######/###??????????????????????? | | ????????????# ?# #??????????????????????? | | ????????????# ?# """ #??????????????????????? | | ????????????# ?# """ #??????????????????????? | | ????????????# ?# """ #??????????????????????? | | ????????????# ## #??????????????????????? | | ????????????# ## "S #??????????????????????? | | ????????????# ##=""" #??+#??????????????????? | | ????????????# ##!["" #?? #??????????????????? | | ???????????## ##%%=%* #?? #??????????????????? | | ???????????# ###+######## #??????????????????? | | ???## #### = == #??????????????????? | | ???# !=* [ #??????????????????? | | ???# ### ! #??????????????????? | | ???????????# #####+###+# ####???????????????? | | ???????????####### + #???????????????? | | ?????????????????# # #???????????????? | | ?????????????????# #=* ###?????????????? | | ?????????????????# @b/%[ #????????? | | ?????????????????# ##########????????????? | | ?????????????????# #?????????????????????? | | ?????????????????# #?????????????????????? | | ?????????????????# #?????????????????????? | | ?????????????????###########?????????????????????? | | ?????????????????????????????????????????????????? | | ?????????????????????????????????????????????????? | | ?????????????????????????????????????????????????? | | ?????????????????????????????????????????????????? | | ?????????????????????????????????????????????????? | | ?????????????????????????????????????????????????? | | ?????????????????????????????????????????????????? | | ?????????????????????????????????????????????????? | | ?????????????????????????????????????????????????? | | ?????????????????????????????????????????????????? | | ?????????????????????????????????????????????????? | | ?????????????????????????????????????????????????? | | ?????????????????????????????????????????????????? | | ?????????????????????????????????????????????????? | | ?????????????????????????????????????????????????? | | | | | | | | | +----------------------------------------------------+ Best States ------------- Heat Dissipation 28 Energy Generation 12 Energy Capacity 265 Matter Stores 300 Matter Capacity 300 Sight Range 16 Terrain Scan Density 10 Armor Coverage 150 Power Shielding 33 Utility Shielding 33 Evasion (%) 55 Recoil Reduction 2 Item Schematics ----------------- None Robot Schematics ------------------ None Fabricated ------------ Nothing Alien Tech Used ----------------- None Achievements -------------- None Challenges ------------ None Game ------ Seed AntigravLaserStatue Manual? 0 Play Time 00:07:48 Cumulative 11.8 hours Start 2024.11.06 @ 20:47:03 End 2024.11.06 @ 20:52:41 Sessions 1 Manual Loads 0 Difficulty Rogue Special Mode None Game No. 20 Rogue 20 Adventurer 0 Explorer 0 Win Type - Total 0 Types 0/0/0/0/0/0/0/0/0 Lore% 8 Gallery% 15 Achievement% 14 Wizard Run 0 Options --------- Layout 1 ASCII 0 Keyboard 1 Movement Numpad Keybinds 0 Fullscreen 2 Font 24/Smallcaps Map View 50x35 Zoom Use 0% Tactical HUD 0 Map Filters NONE Filters NONE Steam X RUN: 0fc5254d-e516-4041-907c-83f6711391a2